[Event "*** Titled Tuesday 3|2 Blitz"]
[Site "Chess.com"]
[Date "2015.09.01"]
[Round "7"]
[White "pKiLz5Rn9b"]
[Black "lukas_111111"]
[Result "1-0"]
[WhiteElo "2417"]
[BlackElo "2217"]
[TimeControl "180+2"]
[EndTime "12:26:54 PDT"]
[Termination "pKiLz5Rn9b won on time"]

1. e4 {[%clk 0:03:01.9]} 1... c5 {[%clk 0:03:00.2]} 2. c3 {[%clk 0:03:02.5]}
2... e6 {[%clk 0:03:00.1]} 3. d4 {[%clk 0:03:03.4]} 3... d5 {[%clk 0:03:01.4]}
4. exd5 {[%clk 0:03:04.9]} 4... exd5 {[%clk 0:03:02.4]} 5. Nf3 {[%clk
0:03:06.6]} 5... a6 {[%clk 0:03:03.7]} 6. Bd3 {[%clk 0:03:05.2]} 6... c4 {[%clk
0:03:00.6]} 7. Bc2 {[%clk 0:03:06.5]} 7... Nf6 {[%clk 0:03:00.5]} 8. O-O {[%clk
0:03:08]} 8... Be7 {[%clk 0:03:01.3]} 9. b3 {[%clk 0:03:09.1]} 9... b5 {[%clk
0:02:58.4]} 10. a4 {[%clk 0:03:09.8]} 10... Bb7 {[%clk 0:02:56]} 11. Ba3 {[%clk
0:03:09.5]} 11... O-O {[%clk 0:02:47.3]} 12. Re1 {[%clk 0:03:10]} 12... Bxa3
{[%clk 0:02:47.4]} 13. Nxa3 {[%clk 0:03:11]} 13... Bc6 {[%clk 0:02:41.2]} 14.
Ne5 {[%clk 0:03:07.1]} 14... Be8 {[%clk 0:02:38.5]} 15. Nb1 {[%clk 0:03:08.3]}
15... Nc6 {[%clk 0:02:22]} 16. Nd2 {[%clk 0:02:59.5]} 16... Nxe5 {[%clk
0:02:02.7]} 17. dxe5 {[%clk 0:02:59]} 17... Nd7 {[%clk 0:02:03.3]} 18. Nf3
{[%clk 0:03:00.7]} 18... Nc5 {[%clk 0:02:02.8]} 19. Nd4 {[%clk 0:03:00.8]} 19...
cxb3 {[%clk 0:01:59.9]} 20. Bxb3 {[%clk 0:02:50.8]} 20... Nxb3 {[%clk
0:02:00.2]} 21. Qxb3 {[%clk 0:02:51.7]} 21... bxa4 {[%clk 0:02:01.3]} 22. Qb4
{[%clk 0:02:53.4]} 22... Rb8 {[%clk 0:01:57.9]} 23. Qd6 {[%clk 0:02:48.6]} 23...
Qxd6 {[%clk 0:01:50.1]} 24. exd6 {[%clk 0:02:49.2]} 24... Rb6 {[%clk 0:01:46.6]}
25. Nf5 {[%clk 0:02:23.6]} 25... g6 {[%clk 0:01:46.3]} 26. Ne7+ {[%clk
0:02:20.6]} 26... Kg7 {[%clk 0:01:47.4]} 27. Nxd5 {[%clk 0:02:21.4]} 27... Rxd6
{[%clk 0:01:48]} 28. Ne3 {[%clk 0:02:21.2]} 28... Bc6 {[%clk 0:01:44.3]} 29. c4
{[%clk 0:02:21.7]} 29... Rb8 {[%clk 0:01:35.7]} 30. Rec1 {[%clk 0:02:15.5]}
30... Rd2 {[%clk 0:01:33.8]} 31. c5 {[%clk 0:02:08.7]} 31... Rbb2 {[%clk
0:01:22.7]} 32. Nc4 {[%clk 0:01:54.1]} 32... Rxf2 {[%clk 0:01:22.1]} 33. Nxb2
{[%clk 0:01:55.7]} 33... Rxg2+ {[%clk 0:01:23.1]} 34. Kf1 {[%clk 0:01:57.4]}
34... Rxb2 {[%clk 0:01:23.9]} 35. Rd1 {[%clk 0:01:58.1]} 35... Rxh2 {[%clk
0:01:19.7]} 36. Kg1 {[%clk 0:01:53.3]} 36... Rh5 {[%clk 0:00:59.3]} 37. Rac1
{[%clk 0:01:53.2]} 37... a3 {[%clk 0:00:58.1]} 38. Kf2 {[%clk 0:01:48.2]} 38...
Rh2+ {[%clk 0:00:49.7]} 39. Ke3 {[%clk 0:01:45.2]} 39... a2 {[%clk 0:00:49.6]}
40. Rd6 {[%clk 0:01:25.4]} 40... Rc2 {[%clk 0:00:49.1]} 41. Rdd1 {[%clk
0:01:23.4]} 41... Rb2 {[%clk 0:00:34]} 42. Kd4 {[%clk 0:01:15.2]} 42... h5
{[%clk 0:00:32.4]} 43. Ke5 {[%clk 0:01:15.6]} 43... Bf3 {[%clk 0:00:22.7]} 44.
Re1 {[%clk 0:01:14.5]} 44... Rd2 {[%clk 0:00:15.4]} 45. c6 {[%clk 0:01:10.4]}
45... Rd5+ {[%clk 0:00:13.5]} 46. Kf4 {[%clk 0:01:11.5]} 46... Rf5+ {[%clk
0:00:14.6]} 47. Kg3 {[%clk 0:01:12.1]} 47... h4+ {[%clk 0:00:11.4]} 48. Kxh4
{[%clk 0:01:11.7]} 48... Rb5 {[%clk 0:00:06.9]} 49. c7 {[%clk 0:01:10.3]} 49...
Bb7 {[%clk 0:00:05.2]} 50. Kg3 {[%clk 0:01:03.6]} 50... Ra5 {[%clk 0:00:05.7]}
51. Ra1 {[%clk 0:01:01]} 51... f5 {[%clk 0:00:05.7]} 52. Re2 {[%clk 0:01:01.5]}
52... Kf6 {[%clk 0:00:06.6]} 53. Raxa2 {[%clk 0:00:59.5]} 53... Rxa2 {[%clk
0:00:03.7]} 54. Rxa2 {[%clk 0:01:00.6]} 54... Ke6 {[%clk 0:00:04.1]} 55. Rd2
{[%clk 0:01:01.6]} 1-0

[Event "*** Titled Tuesday 3|2 Blitz"]
[Site "Chess.com"]
[Date "2015.09.01"]
[Round "7"]
[White "stefanodinn"]
[Black "enen0315"]
[Result "1-0"]
[WhiteElo "2127"]
[BlackElo "1940"]
[TimeControl "180+2"]
[EndTime "12:27:01 PDT"]
[Termination "stefanodinn won by resignation"]

1. e4 {[%clk 0:02:59]} 1... c5 {[%clk 0:03:00]} 2. Nf3 {[%clk 0:02:59.4]} 2...
g6 {[%clk 0:03:00.3]} 3. c3 {[%clk 0:02:58.4]} 3... Bg7 {[%clk 0:02:57.6]} 4. d4
{[%clk 0:02:59.2]} 4... cxd4 {[%clk 0:02:59]} 5. cxd4 {[%clk 0:02:59.7]} 5... d5
{[%clk 0:03:00]} 6. exd5 {[%clk 0:03:00.2]} 6... Nf6 {[%clk 0:03:00.1]} 7. Bb5+
{[%clk 0:03:00.7]} 7... Nbd7 {[%clk 0:02:55.8]} 8. d6 {[%clk 0:03:00.6]} 8...
exd6 {[%clk 0:02:54.7]} 9. Qe2+ {[%clk 0:03:00.4]} 9... Kf8 {[%clk 0:02:38.6]}
10. O-O {[%clk 0:02:46.3]} 10... a6 {[%clk 0:02:38.4]} 11. Bd3 {[%clk
0:02:41.6]} 11... b6 {[%clk 0:02:33.9]} 12. Nc3 {[%clk 0:02:41.2]} 12... Bb7
{[%clk 0:02:34.1]} 13. Bf4 {[%clk 0:02:41.3]} 13... Ne8 {[%clk 0:02:18.8]} 14.
Be4 {[%clk 0:02:34]} 14... Bxe4 {[%clk 0:02:10.6]} 15. Nxe4 {[%clk 0:02:33.4]}
15... Ndf6 {[%clk 0:02:10.7]} 16. Rfe1 {[%clk 0:02:23]} 16... h6 {[%clk
0:02:03.3]} 17. Nc3 {[%clk 0:02:14.8]} 17... g5 {[%clk 0:01:52]} 18. Be3 {[%clk
0:02:00.1]} 18... Qd7 {[%clk 0:01:48]} 19. d5 {[%clk 0:01:59.9]} 19... b5 {[%clk
0:01:43.5]} 20. a3 {[%clk 0:01:32.2]} 20... Nc7 {[%clk 0:01:42.6]} 21. Rad1
{[%clk 0:01:30.9]} 21... Re8 {[%clk 0:01:41.7]} 22. Qd3 {[%clk 0:01:28.4]} 22...
Nh5 {[%clk 0:01:18.9]} 23. Bd4 {[%clk 0:01:25.1]} 23... Nf4 {[%clk 0:01:13.3]}
24. Bxg7+ {[%clk 0:01:24.9]} 24... Kxg7 {[%clk 0:01:14.9]} 25. Qd4+ {[%clk
0:01:25.3]} 25... f6 {[%clk 0:01:13]} 26. g3 {[%clk 0:01:14.4]} 26... Ng6 {[%clk
0:01:13]} 27. Kg2 {[%clk 0:01:01]} 27... h5 {[%clk 0:01:12.3]} 28. Nxg5 {[%clk
0:00:55.5]} 28... h4 {[%clk 0:01:07.7]} 29. Rxe8 {[%clk 0:00:45]} 29... Rxe8
{[%clk 0:00:55.5]} 30. Nge4 {[%clk 0:00:35.4]} 30... Rf8 {[%clk 0:00:28.1]} 31.
Rd3 {[%clk 0:00:34]} 31... Ne5 {[%clk 0:00:26.6]} 32. Re3 {[%clk 0:00:27.8]}
32... h3+ {[%clk 0:00:26.3]} 33. Kf1 {[%clk 0:00:23.3]} 33... Qf5 {[%clk
0:00:26.4]} 34. Nxd6 {[%clk 0:00:16.9]} 34... Qc2 {[%clk 0:00:21.2]} 35. Nde4
{[%clk 0:00:10.4]} 35... a5 {[%clk 0:00:16]} 36. Nxf6 {[%clk 0:00:09.5]} 36...
Rxf6 {[%clk 0:00:16.2]} 37. Rxe5 {[%clk 0:00:09.8]} 37... Qxf2+ {[%clk
0:00:16.7]} 38. Qxf2 {[%clk 0:00:10]} 38... Rxf2+ {[%clk 0:00:17.3]} 39. Kxf2
{[%clk 0:00:10.9]} 39... b4 {[%clk 0:00:18.9]} 40. axb4 {[%clk 0:00:11.4]} 40...
axb4 {[%clk 0:00:20.5]} 41. Ne4 {[%clk 0:00:12.5]} 41... Kf7 {[%clk 0:00:21.5]}
42. d6 {[%clk 0:00:13.1]} 42... Ne8 {[%clk 0:00:21.5]} 43. Rb5 {[%clk
0:00:11.5]} 43... Ke6 {[%clk 0:00:21.6]} 44. Rxb4 {[%clk 0:00:12.6]} 44... Nxd6
{[%clk 0:00:23.1]} 45. Nxd6 {[%clk 0:00:13.5]} 1-0

[Event "*** Titled Tuesday 3|2 Blitz"]
[Site "Chess.com"]
[Date "2015.09.01"]
[Round "7"]
[White "jup1978"]
[Black "Thomaslegend"]
[Result "1-0"]
[WhiteElo "2160"]
[BlackElo "2123"]
[TimeControl "180+2"]
[EndTime "12:27:03 PDT"]
[Termination "jup1978 won by resignation"]

1. e4 {[%clk 0:02:43.1]} 1... c5 {[%clk 0:03:01]} 2. Nf3 {[%clk 0:02:39.2]} 2...
d6 {[%clk 0:03:02.3]} 3. Bb5+ {[%clk 0:02:35.4]} 3... Nd7 {[%clk 0:03:02.8]} 4.
d4 {[%clk 0:02:35.8]} 4... cxd4 {[%clk 0:03:03.4]} 5. Qxd4 {[%clk 0:02:37.7]}
5... a6 {[%clk 0:03:04]} 6. Bxd7+ {[%clk 0:02:39.1]} 6... Bxd7 {[%clk
0:03:04.9]} 7. Nc3 {[%clk 0:02:40.7]} 7... e5 {[%clk 0:03:05.9]} 8. Qd3 {[%clk
0:02:39.7]} 8... h6 {[%clk 0:03:07.1]} 9. O-O {[%clk 0:02:38.3]} 9... Nf6 {[%clk
0:03:08.3]} 10. Be3 {[%clk 0:02:32.2]} 10... Be7 {[%clk 0:03:05.8]} 11. Rfd1
{[%clk 0:02:32.4]} 11... Bc6 {[%clk 0:03:02.6]} 12. h3 {[%clk 0:02:30.2]} 12...
O-O {[%clk 0:03:01]} 13. a4 {[%clk 0:02:30.6]} 13... b6 {[%clk 0:02:29.8]} 14.
Nd2 {[%clk 0:02:22]} 14... d5 {[%clk 0:02:11.3]} 15. exd5 {[%clk 0:02:18.7]}
15... Nxd5 {[%clk 0:02:12.3]} 16. Nxd5 {[%clk 0:02:15.5]} 16... Bxd5 {[%clk
0:01:58.7]} 17. Nc4 {[%clk 0:02:13.4]} 17... Bxc4 {[%clk 0:01:47.2]} 18. Qxc4
{[%clk 0:02:15.3]} 18... Rc8 {[%clk 0:01:36.5]} 19. Qxa6 {[%clk 0:01:59.7]}
19... Qc7 {[%clk 0:01:36.6]} 20. c3 {[%clk 0:01:24.4]} 20... Bc5 {[%clk
0:01:34.6]} 21. Bxc5 {[%clk 0:01:19.2]} 21... Qxc5 {[%clk 0:01:36.5]} 22. Qd3
{[%clk 0:01:09.6]} 22... Rc6 {[%clk 0:01:26.6]} 23. Qd5 {[%clk 0:01:01.1]} 23...
Rfc8 {[%clk 0:01:14]} 24. Qxc5 {[%clk 0:01:00.7]} 24... Rxc5 {[%clk 0:01:15.4]}
25. Rd6 {[%clk 0:01:01.9]} 25... R5c6 {[%clk 0:01:03.6]} 26. Rad1 {[%clk
0:00:59.6]} 26... Kf8 {[%clk 0:00:55.6]} 27. Rxc6 {[%clk 0:00:57.5]} 27... Rxc6
{[%clk 0:00:57]} 28. Rd5 {[%clk 0:00:59]} 28... Re6 {[%clk 0:00:48.4]} 29. Kf1
{[%clk 0:00:59.2]} 29... Ke7 {[%clk 0:00:48.9]} 30. Ke2 {[%clk 0:00:58.8]} 30...
f5 {[%clk 0:00:47.4]} 31. a5 {[%clk 0:00:57.1]} 31... bxa5 {[%clk 0:00:47.4]}
32. Rxa5 {[%clk 0:00:59]} 32... Kf6 {[%clk 0:00:42.3]} 33. b4 {[%clk 0:00:59.8]}
33... Rc6 {[%clk 0:00:42.5]} 34. Kd3 {[%clk 0:00:57]} 34... f4 {[%clk
0:00:31.1]} 35. b5 {[%clk 0:00:57.5]} 35... Rc8 {[%clk 0:00:28.7]} 36. b6 {[%clk
0:00:53]} 36... Rb8 {[%clk 0:00:26.8]} 37. Rb5 {[%clk 0:00:53.3]} 37... Ke6
{[%clk 0:00:28]} 38. c4 {[%clk 0:00:50.8]} 38... Kd6 {[%clk 0:00:29.2]} 39. Ke4
{[%clk 0:00:51.6]} 39... g6 {[%clk 0:00:30.1]} 40. b7 {[%clk 0:00:49.6]} 40...
Kc6 {[%clk 0:00:26.2]} 41. Kxe5 {[%clk 0:00:49.9]} 41... g5 {[%clk 0:00:21.8]}
42. Kf5 {[%clk 0:00:48]} 42... Kc7 {[%clk 0:00:21.1]} 43. Kg6 {[%clk 0:00:48.6]}
43... g4 {[%clk 0:00:16.9]} 44. hxg4 {[%clk 0:00:48.2]} 44... Rg8+ {[%clk
0:00:17.1]} 45. Kxh6 {[%clk 0:00:47.1]} 45... Kb8 {[%clk 0:00:17.1]} 46. g5
{[%clk 0:00:45.7]} 46... f3 {[%clk 0:00:18.2]} 47. gxf3 {[%clk 0:00:46.2]} 47...
Rf8 {[%clk 0:00:17.9]} 48. g6 {[%clk 0:00:44.6]} 48... Rh8+ {[%clk 0:00:14]} 49.
Kg5 {[%clk 0:00:44.7]} 49... Rd8 {[%clk 0:00:08]} 50. g7 {[%clk 0:00:42.7]}
50... Re8 {[%clk 0:00:06.8]} 51. f4 {[%clk 0:00:42.4]} 51... Rd8 {[%clk
0:00:08]} 52. f5 {[%clk 0:00:43.5]} 52... Re8 {[%clk 0:00:09.4]} 53. f6 {[%clk
0:00:44.4]} 53... Rd8 {[%clk 0:00:09.6]} 54. f7 {[%clk 0:00:43.8]} 1-0

[Event "*** Titled Tuesday 3|2 Blitz"]
[Site "Chess.com"]
[Date "2015.09.01"]
[Round "7"]
[White "DanielNaroditsky"]
[Black "joppie2"]
[Result "1-0"]
[WhiteElo "2563"]
[BlackElo "2388"]
[TimeControl "180+2"]
[EndTime "12:27:04 PDT"]
[Termination "DanielNaroditsky won by resignation"]

1. d4 {[%clk 0:03:01.9]} 1... d5 {[%clk 0:03:01.5]} 2. c4 {[%clk 0:03:03.1]}
2... c6 {[%clk 0:03:02.7]} 3. Nf3 {[%clk 0:03:03.9]} 3... Nf6 {[%clk 0:03:04.2]}
4. Nc3 {[%clk 0:03:05.4]} 4... dxc4 {[%clk 0:03:05.8]} 5. a4 {[%clk 0:03:06.2]}
5... e6 {[%clk 0:03:06.7]} 6. e4 {[%clk 0:02:57.1]} 6... Bb4 {[%clk 0:03:06.4]}
7. Bxc4 {[%clk 0:02:58.6]} 7... Nxe4 {[%clk 0:03:06.8]} 8. O-O {[%clk
0:03:00.2]} 8... Nf6 {[%clk 0:03:07.9]} 9. Bg5 {[%clk 0:03:00.7]} 9... Nbd7
{[%clk 0:03:06.7]} 10. Qc2 {[%clk 0:02:56.9]} 10... O-O {[%clk 0:03:07.7]} 11.
Rad1 {[%clk 0:02:54.9]} 11... Be7 {[%clk 0:03:08.2]} 12. Ba2 {[%clk 0:02:44.5]}
12... Nd5 {[%clk 0:03:08]} 13. Bb1 {[%clk 0:02:41.9]} 13... g6 {[%clk
0:03:09.3]} 14. Bh6 {[%clk 0:02:41]} 14... Re8 {[%clk 0:03:08.9]} 15. Rfe1
{[%clk 0:02:40.5]} 15... Bf8 {[%clk 0:03:01.8]} 16. Bg5 {[%clk 0:02:39]} 16...
Be7 {[%clk 0:03:02.3]} 17. Bh6 {[%clk 0:02:40]} 17... Bf8 {[%clk 0:03:03.5]} 18.
Bg5 {[%clk 0:02:38.8]} 18... Be7 {[%clk 0:03:04.7]} 19. h4 {[%clk 0:02:29]}
19... b6 {[%clk 0:02:52.8]} 20. Ne4 {[%clk 0:02:24.3]} 20... Bb7 {[%clk
0:02:51.9]} 21. Nd6 {[%clk 0:02:23.5]} 21... Bxg5 {[%clk 0:02:41]} 22. Nxg5
{[%clk 0:02:24.7]} 22... Re7 {[%clk 0:02:33.1]} 23. h5 {[%clk 0:01:44.9]} 23...
Nf8 {[%clk 0:02:26.5]} 24. Nxb7 {[%clk 0:01:14.6]} 24... Rxb7 {[%clk 0:02:25.1]}
25. Qd2 {[%clk 0:01:14.8]} 25... Nf6 {[%clk 0:02:21.7]} 26. hxg6 {[%clk
0:01:13.7]} 26... hxg6 {[%clk 0:02:23.6]} 27. Qf4 {[%clk 0:01:14.9]} 27... N8h7
{[%clk 0:02:21.6]} 28. Nf3 {[%clk 0:01:15.7]} 28... Nd5 {[%clk 0:02:21.1]} 29.
Qh2 {[%clk 0:01:10.3]} 29... Kg7 {[%clk 0:02:17.6]} 30. Re4 {[%clk 0:01:11]}
30... Ng5 {[%clk 0:02:12.2]} 31. Qe5+ {[%clk 0:01:08.2]} 31... f6 {[%clk
0:02:13.4]} 32. Nxg5 {[%clk 0:01:09.9]} 32... fxe5 {[%clk 0:02:11.4]} 33. Nxe6+
{[%clk 0:01:11.6]} 33... Kf6 {[%clk 0:02:06.3]} 34. Nxd8 {[%clk 0:01:13.3]}
34... Rxd8 {[%clk 0:02:07.1]} 35. dxe5+ {[%clk 0:01:15]} 35... Ke6 {[%clk
0:01:51.4]} 36. Ba2 {[%clk 0:01:16.1]} 36... Rbd7 {[%clk 0:01:50.2]} 37. g3
{[%clk 0:01:02.5]} 37... Ke7 {[%clk 0:01:44.4]} 38. Red4 {[%clk 0:01:03.6]}
38... Nb4 {[%clk 0:01:41.7]} 39. Rxd7+ {[%clk 0:01:02.3]} 39... Rxd7 {[%clk
0:01:43.6]} 40. Rxd7+ {[%clk 0:01:04]} 40... Kxd7 {[%clk 0:01:45.5]} 41. Bf7
{[%clk 0:00:57.8]} 41... g5 {[%clk 0:01:47.1]} 42. Bc4 {[%clk 0:00:48.4]} 42...
a6 {[%clk 0:01:41.7]} 43. f4 {[%clk 0:00:34.6]} 43... gxf4 {[%clk 0:01:43.6]}
44. gxf4 {[%clk 0:00:36.3]} 44... b5 {[%clk 0:01:45.5]} 45. axb5 {[%clk
0:00:37.9]} 45... axb5 {[%clk 0:01:44.3]} 46. Be2 {[%clk 0:00:35.6]} 46... Ke6
{[%clk 0:01:40.2]} 47. Kf2 {[%clk 0:00:31]} 47... Nc2 {[%clk 0:01:34.6]} 48. Bd3
{[%clk 0:00:26.2]} 48... Nb4 {[%clk 0:01:33.5]} 49. Ke3 {[%clk 0:00:25.8]} 49...
Nd5+ {[%clk 0:01:30.6]} 50. Ke4 {[%clk 0:00:26.9]} 50... Ne7 {[%clk 0:01:32.3]}
51. Kd4 {[%clk 0:00:27.9]} 51... b4 {[%clk 0:01:20.3]} 52. Kc5 {[%clk
0:00:24.1]} 52... b3 {[%clk 0:01:21.4]} 53. Be4 {[%clk 0:00:20.5]} 53... Nc8
{[%clk 0:00:57]} 54. Bxc6 {[%clk 0:00:21.4]} 54... Ne7 {[%clk 0:00:52.1]} 55.
Be4 {[%clk 0:00:22.5]} 55... Nc8 {[%clk 0:00:52.6]} 56. Bb7 {[%clk 0:00:22.1]}
56... Ne7 {[%clk 0:00:53.3]} 57. Be4 {[%clk 0:00:23.8]} 57... Nc8 {[%clk
0:00:51.6]} 58. Kd4 {[%clk 0:00:25.5]} 58... Nb6 {[%clk 0:00:51.3]} 59. f5+
{[%clk 0:00:26.9]} 59... Ke7 {[%clk 0:00:52.9]} 60. Bd5 {[%clk 0:00:23.3]} 60...
Na4 {[%clk 0:00:53]} 61. f6+ {[%clk 0:00:24.6]} 61... Kf8 {[%clk 0:00:52]} 62.
e6 {[%clk 0:00:25.1]} 1-0

[Event "*** Titled Tuesday 3|2 Blitz"]
[Site "Chess.com"]
[Date "2015.09.01"]
[Round "7"]
[White "Zlatan56"]
[Black "ChadaevNikolay"]
[Result "1/2-1/2"]
[WhiteElo "2555"]
[BlackElo "2605"]
[TimeControl "180+2"]
[EndTime "12:27:34 PDT"]
[Termination "Game drawn - insufficient material"]

1. Nf3 {[%clk 0:03:01.9]} 1... Nf6 {[%clk 0:02:58.1]} 2. g3 {[%clk 0:03:02.6]}
2... g6 {[%clk 0:02:57.4]} 3. Bg2 {[%clk 0:03:04]} 3... Bg7 {[%clk 0:02:59]} 4.
O-O {[%clk 0:03:05.5]} 4... O-O {[%clk 0:03:00.6]} 5. d4 {[%clk 0:03:06.6]} 5...
d6 {[%clk 0:03:01.7]} 6. a4 {[%clk 0:03:07.2]} 6... a5 {[%clk 0:02:56.1]} 7. Nc3
{[%clk 0:03:06.1]} 7... Nc6 {[%clk 0:02:56.3]} 8. e4 {[%clk 0:03:02.6]} 8... e5
{[%clk 0:02:46.6]} 9. dxe5 {[%clk 0:02:48.2]} 9... Nxe5 {[%clk 0:02:47]} 10.
Nxe5 {[%clk 0:02:42.1]} 10... dxe5 {[%clk 0:02:47.7]} 11. Be3 {[%clk 0:02:41.5]}
11... Be6 {[%clk 0:02:43.4]} 12. Qxd8 {[%clk 0:02:35.4]} 12... Rfxd8 {[%clk
0:02:40.9]} 13. Nb5 {[%clk 0:02:33.3]} 13... Ne8 {[%clk 0:02:36.8]} 14. Rfd1
{[%clk 0:02:31]} 14... Bf8 {[%clk 0:02:34.3]} 15. Bf1 {[%clk 0:02:27.3]} 15...
Be7 {[%clk 0:02:33.4]} 16. f3 {[%clk 0:02:13.8]} 16... f6 {[%clk 0:02:34.2]} 17.
Kf2 {[%clk 0:02:13.6]} 17... Kf7 {[%clk 0:02:35.1]} 18. g4 {[%clk 0:02:11.3]}
18... c6 {[%clk 0:02:05.4]} 19. Na3 {[%clk 0:02:04.5]} 19... Rxd1 {[%clk
0:01:49.1]} 20. Rxd1 {[%clk 0:02:04.6]} 20... Rd8 {[%clk 0:01:50.7]} 21. Rxd8
{[%clk 0:02:00.3]} 21... Bxd8 {[%clk 0:01:51.3]} 22. Nc4 {[%clk 0:02:00.5]}
22... Bc7 {[%clk 0:01:43.1]} 23. Bd2 {[%clk 0:01:42.2]} 23... b6 {[%clk
0:01:29]} 24. Be3 {[%clk 0:01:40.1]} 24... b5 {[%clk 0:01:13]} 25. axb5 {[%clk
0:01:34.6]} 25... cxb5 {[%clk 0:01:14.1]} 26. Na3 {[%clk 0:01:36.1]} 26... b4
{[%clk 0:01:14.6]} 27. Nb5 {[%clk 0:01:37.5]} 27... Bd8 {[%clk 0:00:56.8]} 28.
b3 {[%clk 0:01:37.9]} 28... Bd7 {[%clk 0:00:36.2]} 29. Bc4+ {[%clk 0:01:35.3]}
29... Kg7 {[%clk 0:00:30]} 30. Bc5 {[%clk 0:01:32.4]} 30... h6 {[%clk
0:00:23.2]} 31. h3 {[%clk 0:01:25.9]} 31... f5 {[%clk 0:00:24.4]} 32. Na7 {[%clk
0:01:15.2]} 32... fxe4 {[%clk 0:00:23.4]} 33. fxe4 {[%clk 0:01:15.3]} 33... h5
{[%clk 0:00:24.4]} 34. gxh5 {[%clk 0:01:02.9]} 34... gxh5 {[%clk 0:00:25.3]} 35.
Bb5 {[%clk 0:00:59.7]} 35... Bxb5 {[%clk 0:00:23.8]} 36. Nxb5 {[%clk 0:01:01.6]}
36... Nf6 {[%clk 0:00:24.8]} 37. Kf3 {[%clk 0:01:02.6]} 37... Nd7 {[%clk
0:00:25]} 38. Be3 {[%clk 0:00:59.8]} 38... Kf7 {[%clk 0:00:25]} 39. Nd6+ {[%clk
0:01:00.1]} 39... Ke6 {[%clk 0:00:25.9]} 40. Nf5 {[%clk 0:00:58.2]} 40... Bf6
{[%clk 0:00:23.8]} 41. Ng3 {[%clk 0:00:58.9]} 41... h4 {[%clk 0:00:19]} 42. Nf5
{[%clk 0:00:59.7]} 42... Bd8 {[%clk 0:00:20]} 43. Bf2 {[%clk 0:00:59.5]} 43...
Bg5 {[%clk 0:00:20.8]} 44. Bxh4 {[%clk 0:00:53.4]} 44... Bxh4 {[%clk 0:00:21.9]}
45. Nxh4 {[%clk 0:00:55.2]} 45... Nc5 {[%clk 0:00:23.5]} 46. Nf5 {[%clk
0:00:51.1]} 46... a4 {[%clk 0:00:18.9]} 47. bxa4 {[%clk 0:00:50.6]} 47... Nxa4
{[%clk 0:00:20]} 48. Ne3 {[%clk 0:00:48.3]} 48... Nc5 {[%clk 0:00:20.9]} 49. h4
{[%clk 0:00:31.6]} 49... b3 {[%clk 0:00:21.8]} 50. cxb3 {[%clk 0:00:32.6]} 50...
Nxb3 {[%clk 0:00:22.9]} 51. Nc4 {[%clk 0:00:30.1]} 51... Kf6 {[%clk 0:00:22.6]}
52. Kg4 {[%clk 0:00:27]} 52... Nc5 {[%clk 0:00:23]} 53. Nd2 {[%clk 0:00:27]}
53... Kg6 {[%clk 0:00:23.6]} 54. Kg3 {[%clk 0:00:19.1]} 54... Kh5 {[%clk
0:00:24.3]} 55. Kh3 {[%clk 0:00:20.2]} 55... Kg6 {[%clk 0:00:25.2]} 56. Kg4
{[%clk 0:00:21.5]} 56... Kf6 {[%clk 0:00:25.7]} 57. h5 {[%clk 0:00:21.6]} 57...
Nd3 {[%clk 0:00:25.9]} 58. Nc4 {[%clk 0:00:17.5]} 58... Nf2+ {[%clk 0:00:26.4]}
59. Kf3 {[%clk 0:00:18.5]} 59... Nxe4 {[%clk 0:00:27.2]} 60. Kxe4 {[%clk
0:00:19.7]} 60... Kg5 {[%clk 0:00:28.4]} 61. Kxe5 {[%clk 0:00:21]} 61... Kxh5
{[%clk 0:00:29.6]} 1/2-1/2